[Event "NJSK 2021 Jeugd C"]
[Site "Almelo, Netherlands"]
[Date "2021.08.01"]
[Round "1.9"]
[White "Ponomarev, Ivan"]
[Black "Krylov, Philippe"]
[Result "1-0"]
[TimeControl "90min + 30sec/move"]
[WhiteElo "1723"]
[BlackElo "1339"]

1. e4 {[%clk 01:30:59]} {[%emt 00:00:01]} c6 {[%clk 01:30:59]} {[%emt
00:00:02]} 2. d4 {[%clk 01:31:25]} {[%emt 00:00:04]} d5 {[%clk 01:31:23]}
{[%emt 00:00:06]} 3. e5 {[%clk 01:31:50]} {[%emt 00:00:04]} Bf5 {[%clk
01:31:33]} {[%emt 00:00:19]} 4. Bd3 {[%clk 01:32:03]} {[%emt 00:00:17]} Bxd3
{[%clk 01:31:37]} {[%emt 00:00:27]} 5. Qxd3 {[%clk 01:32:31]} {[%emt 00:00:02]}
e6 {[%clk 01:31:48]} {[%emt 00:00:19]} 6. Nc3 {[%clk 01:31:38]} {[%emt
00:01:23]} Nd7 {[%clk 01:31:17]} {[%emt 00:01:00]} 7. Nf3 {[%clk 01:29:58]}
{[%emt 00:02:10]} h6 {[%clk 01:29:19]} {[%emt 00:02:27]} 8. O-O {[%clk
01:28:17]} {[%emt 00:02:12]} Ne7 {[%clk 01:25:42]} {[%emt 00:04:06]} 9. Ne2
{[%clk 01:22:45]} {[%emt 00:06:02]} Qb6 {[%clk 01:19:57]} {[%emt 00:06:16]} 10.
Ng3 {[%clk 01:17:55]} {[%emt 00:05:17]} Ng6 {[%clk 01:18:15]} {[%emt 00:02:14]}
11. c3 {[%emt 00:07:50]} c5 {[%clk 01:17:12]} {[%emt 00:00:21]} 12. Kh1 {[%clk
01:08:26]} {[%emt 00:03:52]} cxd4 {[%clk 01:15:57]} {[%emt 00:01:45]} 13. cxd4
{[%clk 01:08:48]} {[%emt 00:00:07]} Rc8 {[%clk 01:14:55]} {[%emt 00:01:32]} 14.
Be3 {[%clk 01:06:23]} {[%emt 00:02:55]} Be7 {[%clk 01:09:52]} {[%emt 00:05:34]}
15. Nd2 {[%clk 01:02:55]} {[%emt 00:03:58]} O-O {[%clk 01:07:37]} {[%emt
00:02:43]} 16. Rab1 {[%clk 00:58:16]} {[%emt 00:05:10]} Rc6 {[%clk 01:03:32]}
{[%emt 00:04:35]} 17. f4 {[%clk 00:55:11]} {[%emt 00:03:36]} Qa6 {[%clk
00:55:55]} {[%emt 00:08:07]} 18. Qxa6 {[%clk 00:52:06]} {[%emt 00:03:35]} Rxa6
{[%clk 00:56:02]} {[%emt 00:00:14]} 19. a3 {[%clk 00:51:48]} {[%emt 00:00:57]}
Bh4 {[%clk 00:53:27]} {[%emt 00:03:04]} 20. Ne2 {[%clk 00:43:41]} {[%emt
00:08:37]} Ne7 {[%clk 00:52:59]} {[%emt 00:00:58]} 21. g4 {[%clk 00:42:48]}
{[%emt 00:01:23]} Rc6 {[%clk 00:51:10]} {[%emt 00:02:19]} 22. Nf3 {[%clk
00:37:41]} {[%emt 00:05:37]} g5 {[%clk 00:49:38]} {[%emt 00:02:02]} 23. Nxh4
{[%clk 00:35:11]} {[%emt 00:02:59]} gxh4 {[%clk 00:49:47]} {[%emt 00:00:21]} 24.
f5 {[%clk 00:35:01]} {[%emt 00:00:41]} Kh7 {[%clk 00:49:47]} {[%emt 00:00:29]}
25. f6 {[%clk 00:30:53]} {[%emt 00:04:39]} Ng6 {[%clk 00:49:54]} {[%emt
00:00:23]} 26. Rf3 {[%clk 00:28:48]} {[%emt 00:02:35]} Nb6 {[%clk 00:48:37]}
{[%emt 00:01:47]} 27. Rh3 {[%clk 00:24:39]} {[%emt 00:04:39]} Nc4 {[%clk
00:48:45]} {[%emt 00:00:22]} 28. Bc1 {[%clk 00:24:00]} {[%emt 00:01:09]} Rfc8
{[%clk 00:47:47]} {[%emt 00:01:28]} 29. b3 {[%clk 00:23:19]} {[%emt 00:01:11]}
Na5 {[%clk 00:47:32]} {[%emt 00:00:46]} 30. Be3 {[%clk 00:22:40]} {[%emt
00:01:08]} Rc2 {[%clk 00:44:23]} {[%emt 00:03:40]} 31. Re1 {[%clk 00:17:59]}
{[%emt 00:05:10]} Nxb3 {[%clk 00:43:29]} {[%emt 00:01:24]} 32. Bxh6 {[%clk
00:17:05]} {[%emt 00:01:23]} Kxh6 {[%clk 00:43:22]} {[%emt 00:00:38]} 33. Rxb3
{[%clk 00:17:30]} {[%emt 00:00:06]} b6 {[%clk 00:43:22]} {[%emt 00:00:29]} 34.
Kg1 {[%clk 00:15:52]} {[%emt 00:02:09]} Kg5 {[%clk 00:43:21]} {[%emt 00:00:31]}
35. h3 {[%clk 00:15:23]} {[%emt 00:00:59]} R8c4 {[%clk 00:43:12]} {[%emt
00:00:38]} 36. Kf1 {[%clk 00:14:57]} {[%emt 00:00:56]} Nf8 {[%clk 00:41:24]}
{[%emt 00:02:18]} 37. Rd3 {[%clk 00:13:56]} {[%emt 00:01:30]} Nd7 {[%clk
00:41:23]} {[%emt 00:00:32]} 38. Kf2 {[%clk 00:14:17]} {[%emt 00:00:09]} Nb8
{[%clk 00:40:22]} {[%emt 00:01:31]} 39. Ke3 {[%clk 00:14:11]} {[%emt 00:00:34]}
Nc6 {[%clk 00:40:25]} {[%emt 00:00:29]} 40. Red1 {[%clk 00:11:12]} {[%emt
00:03:27]} Nxe5 {[%clk 00:39:47]} {[%emt 00:01:09]} 41. Rb3 {[%clk 00:10:45]}
{[%emt 00:00:57]} Nd7 {[%clk 00:39:33]} {[%emt 00:00:45]} 42. Ng1 {[%clk
00:09:47]} {[%emt 00:01:28]} R4c3+ {[%clk 00:38:08]} {[%emt 00:01:54]} 43. Rd3
{[%clk 00:10:05]} {[%emt 00:00:13]} Rxd3+ {[%clk 00:37:17]} {[%emt 00:00:48]}
44. Rxd3 {[%clk 00:10:23]} {[%emt 00:00:44]} Nxf6 {[%clk 00:36:32]} {[%emt
00:01:15]} 45. Nf3+ {[%clk 00:10:26]} {[%emt 00:00:28]} Kh6 {[%clk 00:36:50]}
{[%emt 00:00:12]} 46. g5+ {[%clk 00:10:50]} {[%emt 00:00:06]} Kg6 {[%clk
00:35:11]} {[%emt 00:02:09]} 47. gxf6 {[%clk 00:11:14]} {[%emt 00:00:06]} Kxf6
{[%emt 00:00:39]} 48. Kf4 {[%clk 00:10:48]} {[%emt 00:00:45]} Re2 {[%clk
00:33:04]} {[%emt 00:02:38]} 49. Re3 {[%clk 00:09:27]} {[%emt 00:01:52]} Rc2
{[%clk 00:32:23]} {[%emt 00:01:10]} 50. Kg4 {[%clk 00:08:58]} {[%emt 00:01:00]}
Rc4 {[%clk 00:31:29]} {[%emt 00:01:24]} 51. Rd3 {[%clk 00:09:13]} {[%emt
00:00:15]} Rc8 {[%clk 00:31:14]} {[%emt 00:00:45]} 52. Ne5 {[%clk 00:07:08]}
{[%emt 00:02:35]} Rg8+ {[%clk 00:28:49]} {[%emt 00:02:54]} 53. Kf4 {[%clk
00:07:20]} {[%emt 00:00:18]} Rg3 {[%clk 00:28:24]} {[%emt 00:00:55]} 54. Rxg3
{[%clk 00:07:23]} {[%emt 00:00:27]} hxg3 {[%clk 00:28:46]} {[%emt 00:00:07]} 55.
Kxg3 {[%clk 00:07:52]} {[%emt 00:00:01]} b5 {[%clk 00:28:58]} {[%emt 00:00:19]}
56. Kf4 {[%clk 00:06:32]} {[%emt 00:01:50]} Kg7 {[%clk 00:28:21]} {[%emt
00:01:07]} 57. Nc6 {[%clk 00:05:38]} {[%emt 00:01:24]} a6 {[%clk 00:28:25]}
{[%emt 00:00:26]} 58. h4 {[%clk 00:03:50]} {[%emt 00:02:19]} f6 {[%clk
00:27:39]} {[%emt 00:01:15]} 59. Nd8 {[%clk 00:03:35]} {[%emt 00:00:45]} e5+
{[%clk 00:26:23]} {[%emt 00:01:46]} 60. dxe5 {[%clk 00:03:56]} {[%emt
00:00:09]} fxe5+ {[%clk 00:26:44]} {[%emt 00:00:08]} 61. Kxe5 {[%clk 00:04:20]}
{[%emt 00:00:07]} a5 {[%clk 00:25:41]} {[%emt 00:01:33]} 62. Nc6 {[%clk
00:04:18]} {[%emt 00:00:31]} b4 {[%clk 00:25:57]} {[%emt 00:00:15]} 63. Nxb4
{[%clk 00:04:42]} {[%emt 00:00:06]} 1-0

[Event "NJSK 2021 Jeugd C"]
[Site "Almelo, Netherlands"]
[Date "2021.08.01"]
[Round "1.10"]
[White "Lopes, Samuel"]
[Black "Ekker, Joshua"]
[Result "0-1"]
[TimeControl "90min + 30sec/move"]
[WhiteElo "1124"]
[BlackElo "1695"]

1. e4 {[%clk 01:30:47]} {[%emt 00:00:13]} e5 {[%clk 01:30:52]} {[%emt
00:00:08]} 2. Nf3 {[%clk 01:31:09]} {[%emt 00:00:08]} Nc6 {[%clk 01:31:12]}
{[%emt 00:00:10]} 3. d4 {[%clk 01:31:30]} {[%emt 00:00:10]} exd4 {[%clk
01:31:28]} {[%emt 00:00:13]} 4. Bc4 {[%clk 01:31:46]} {[%emt 00:00:13]} Nf6
{[%clk 01:31:36]} {[%emt 00:00:21]} 5. e5 {[%clk 01:31:54]} {[%emt 00:00:23]}
Ng4 {[%clk 01:31:53]} {[%emt 00:00:12]} 6. Bxf7+ {[%clk 01:32:06]} {[%emt
00:00:19]} Kxf7 {[%clk 01:31:58]} {[%emt 00:00:25]} 7. Ng5+ {[%clk 01:32:28]}
{[%emt 00:00:08]} Kg8 {[%clk 01:31:53]} {[%emt 00:00:34]} 8. Qxg4 {[%clk
01:32:41]} {[%emt 00:00:17]} h6 {[%clk 01:24:54]} {[%emt 00:07:29]} 9. Nf3
{[%clk 01:32:02]} {[%emt 00:01:10]} d6 {[%clk 01:12:16]} {[%emt 00:13:08]} 10.
Qf4 {[%clk 01:27:26]} {[%emt 00:05:05]} dxe5 {[%clk 01:07:59]} {[%emt
00:04:47]} 11. Nxe5 {[%clk 01:26:57]} {[%emt 00:00:59]} Qe8 {[%clk 01:03:36]}
{[%emt 00:06:20]} 12. O-O {[%clk 01:21:49]} {[%emt 00:04:11]} Qxe5 {[%clk
01:01:43]} {[%emt 00:02:23]} 13. Qxe5 {[%clk 01:21:49]} {[%emt 00:00:30]} Nxe5
{[%clk 01:00:45]} {[%emt 00:01:28]} 14. f4 {[%clk 01:21:34]} {[%emt 00:00:44]}
Nc6 {[%clk 00:58:53]} {[%emt 00:02:23]} 15. c3 {[%clk 01:20:35]} {[%emt
00:01:29]} Bc5 {[%clk 00:57:35]} {[%emt 00:01:48]} 16. Kh1 {[%clk 01:20:01]}
{[%emt 00:01:03]} Bf5 {[%clk 00:56:38]} {[%emt 00:01:27]} 17. b4 {[%clk
01:17:22]} {[%emt 00:03:10]} Bb6 {[%clk 00:56:14]} {[%emt 00:00:55]} 18. Bb2
{[%clk 01:15:28]} {[%emt 00:02:24]} d3 {[%clk 00:51:38]} {[%emt 00:05:06]} 19.
Nd2 {[%clk 01:13:17]} {[%emt 00:02:40]} Re8 {[%clk 00:50:01]} {[%emt 00:02:07]}
20. Rae1 {[%clk 01:09:25]} {[%emt 00:04:22]} Kf7 {[%clk 00:47:18]} {[%emt
00:03:12]} 21. Nf3 {[%clk 01:04:29]} {[%emt 00:05:27]} Rxe1 {[%clk 00:44:31]}
{[%emt 00:03:17]} 22. Rxe1 {[%clk 01:04:35]} {[%emt 00:00:25]} Re8 {[%clk
00:44:40]} {[%emt 00:00:20]} 23. Rxe8 {[%clk 01:03:33]} {[%emt 00:01:33]} Kxe8
{[%clk 00:41:57]} {[%emt 00:03:13]} 24. Bc1 {[%clk 01:01:49]} {[%emt 00:02:12]}
Ne7 {[%clk 00:40:55]} {[%emt 00:01:33]} 25. h3 {[%clk 00:59:49]} {[%emt
00:02:30]} Nd5 {[%clk 00:40:13]} {[%emt 00:01:12]} 26. Bd2 {[%clk 00:58:59]}
{[%emt 00:01:16]} Be3 {[%clk 00:39:24]} {[%emt 00:01:23]} 27. Be1 {[%clk
00:58:49]} {[%emt 00:00:41]} Bxf4 {[%clk 00:39:17]} {[%emt 00:00:36]} 28. Kg1
{[%clk 00:57:39]} {[%emt 00:01:40]} Be4 {[%clk 00:38:44]} {[%emt 00:01:03]} 29.
Nd2 {[%clk 00:57:43]} {[%emt 00:00:26]} Nxc3 {[%clk 00:38:39]} {[%emt
00:00:35]} 30. Nxe4 {[%clk 00:57:51]} {[%emt 00:00:22]} Nxe4 {[%clk 00:38:58]}
{[%emt 00:00:11]} 31. g3 {[%clk 00:58:08]} {[%emt 00:00:13]} d2 {[%clk
00:39:17]} {[%emt 00:00:11]} 32. Bxd2 {[%clk 00:58:28]} {[%emt 00:00:10]} Bxd2
{[%clk 00:39:41]} {[%emt 00:00:07]} 33. b5 {[%clk 00:58:48]} {[%emt 00:00:10]}
Nxg3 {[%clk 00:40:01]} {[%emt 00:00:10]} 34. a4 {[%clk 00:59:05]} {[%emt
00:00:13]} c5 {[%clk 00:40:21]} {[%emt 00:00:09]} 35. bxc6 {[%clk 00:59:18]}
{[%emt 00:00:17]} bxc6 {[%clk 00:40:45]} {[%emt 00:00:06]} 36. h4 {[%clk
00:59:34]} {[%emt 00:00:13]} c5 {[%clk 00:41:14]} {[%emt 00:00:03]} 37. h5
{[%clk 00:59:51]} {[%emt 00:00:12]} c4 {[%clk 00:41:31]} {[%emt 00:00:14]} 38.
Kf2 {[%clk 01:00:10]} {[%emt 00:00:10]} c3 {[%clk 00:41:51]} {[%emt 00:00:11]}
39. a5 {[%clk 01:00:33]} {[%emt 00:00:06]} c2 {[%clk 00:42:13]} {[%emt
00:00:09]} 40. a6 {[%clk 01:01:00]} {[%emt 00:00:03]} c1=Q {[%clk 00:42:25]}
{[%emt 00:00:17]} 41. Kg2 {[%clk 01:01:17]} {[%emt 00:00:12]} Qf1+ {[%clk
00:42:17]} {[%emt 00:00:38]} 42. Kh2 {[%clk 01:01:32]} {[%emt 00:00:16]} Qxa6
{[%clk 00:42:30]} {[%emt 00:00:17]} 43. Kxg3 {[%clk 01:01:51]} {[%emt
00:00:10]} Qd3+ {[%clk 00:42:45]} {[%emt 00:00:16]} 44. Kf2 {[%clk 01:02:12]}
{[%emt 00:00:09]} a5 {[%clk 00:42:59]} {[%emt 00:00:17]} 45. Kg2 {[%clk
01:02:24]} {[%emt 00:00:17]} a4 {[%clk 00:43:19]} {[%emt 00:00:11]} 46. Kf2
{[%clk 01:02:48]} {[%emt 00:00:06]} a3 {[%clk 00:43:35]} {[%emt 00:00:14]} 47.
Kg2 {[%clk 01:03:13]} {[%emt 00:00:03]} a2 {[%clk 00:44:00]} {[%emt 00:00:07]}
48. Kh2 {[%clk 01:03:39]} {[%emt 00:00:03]} a1=Q {[%clk 00:44:09]} {[%emt
00:00:21]} 49. Kg2 {[%clk 01:04:04]} {[%emt 00:00:04]} Qaf1+ {[%clk 00:44:12]}
{[%emt 00:00:28]} 50. Kh2 {[%clk 01:04:25]} {[%emt 00:00:10]} Qdh3# {[%clk
00:43:39]} {[%emt 00:00:28]} 0-1

[Event "NJSK 2021 Jeugd C"]
[Site "Almelo, Netherlands"]
[Date "2021.08.01"]
[Round "1.11"]
[White "Madularea, David"]
[Black "Aravindhan, Achyuth"]
[Result "1-0"]
[TimeControl "90min + 30sec/move"]
[WhiteElo "1656"]
[BlackElo "1031"]

1. c4 {[%clk 01:30:58]} {[%emt 00:00:02]} c5 {[%clk 01:30:54]} {[%emt
00:00:06]} 2. Nc3 {[%clk 01:31:20]} {[%emt 00:00:08]} d6 {[%clk 01:31:18]}
{[%emt 00:00:07]} 3. Nf3 {[%clk 01:31:32]} {[%emt 00:00:18]} Nf6 {[%clk
01:31:37]} {[%emt 00:00:11]} 4. e3 {[%clk 01:31:48]} {[%emt 00:00:13]} g6
{[%clk 01:31:59]} {[%emt 00:00:09]} 5. d4 {[%clk 01:32:05]} {[%emt 00:00:13]}
cxd4 {[%clk 01:32:19]} {[%emt 00:00:10]} 6. exd4 {[%clk 01:32:30]} {[%emt
00:00:05]} Bg7 {[%clk 01:32:36]} {[%emt 00:00:14]} 7. Bd3 {[%clk 01:32:05]}
{[%emt 00:00:54]} O-O {[%clk 01:32:55]} {[%emt 00:00:11]} 8. O-O {[%clk
01:31:57]} {[%emt 00:00:37]} Nc6 {[%clk 01:33:11]} {[%emt 00:00:14]} 9. d5
{[%clk 01:32:07]} {[%emt 00:00:20]} Nb4 {[%clk 01:33:27]} {[%emt 00:00:14]} 10.
Bb1 {[%clk 01:26:20]} {[%emt 00:06:18]} a5 {[%clk 01:32:03]} {[%emt 00:01:46]}
11. h3 {[%clk 01:25:15]} {[%emt 00:01:42]} b6 {[%clk 01:27:00]} {[%emt
00:05:34]} 12. Re1 {[%clk 01:24:02]} {[%emt 00:01:43]} Ba6 {[%clk 01:26:27]}
{[%emt 00:01:01]} 13. a3 {[%clk 01:24:04]} {[%emt 00:00:30]} Bxc4 {[%clk
01:26:20]} {[%emt 00:00:37]} 14. axb4 {[%clk 01:24:17]} {[%emt 00:00:17]} axb4
{[%clk 01:26:44]} {[%emt 00:00:07]} 15. Rxa8 {[%clk 01:20:00]} {[%emt
00:04:46]} Qxa8 {[%clk 01:27:02]} {[%emt 00:00:11]} 16. b3 {[%clk 01:17:26]}
{[%emt 00:03:04]} Bxb3 {[%clk 01:26:59]} {[%emt 00:00:33]} 17. Qxb3 {[%clk
01:17:50]} {[%emt 00:00:07]} bxc3 {[%clk 01:27:22]} {[%emt 00:00:07]} 18. Ba2
{[%emt 00:10:01]} Qa7 {[%clk 01:25:42]} {[%emt 00:01:16]} 19. Be3 {[%clk
01:08:17]} {[%emt 00:01:25]} Ra8 {[%clk 01:25:40]} {[%emt 00:00:31]} 20. Re2
{[%clk 01:06:02]} {[%emt 00:02:43]} Qa6 {[%clk 01:25:17]} {[%emt 00:00:56]} 21.
Rc2 {[%clk 01:04:39]} {[%emt 00:01:52]} b5 {[%clk 01:22:25]} {[%emt 00:03:23]}
22. Nd4 {[%clk 01:03:19]} {[%emt 00:01:49]} Rb8 {[%clk 01:15:29]} {[%emt
00:07:26]} 23. Rxc3 {[%clk 01:00:51]} {[%emt 00:02:58]} Ne4 {[%clk 01:12:14]}
{[%emt 00:03:46]} 24. Rc6 {[%clk 00:59:47]} {[%emt 00:01:34]} Qa5 {[%clk
01:12:21]} {[%emt 00:00:24]} 25. Qc2 {[%clk 00:56:05]} {[%emt 00:04:10]} Nc5
{[%clk 01:11:48]} {[%emt 00:01:04]} 26. Nf3 {[%clk 00:51:49]} {[%emt 00:04:47]}
Ra8 {[%clk 01:10:51]} {[%emt 00:01:25]} 27. Bb1 {[%clk 00:49:47]} {[%emt
00:02:33]} Nd7 {[%clk 01:09:11]} {[%emt 00:02:09]} 28. Nd4 {[%clk 00:47:05]}
{[%emt 00:03:13]} Qe1+ {[%clk 01:09:25]} {[%emt 00:00:16]} 29. Kh2 {[%clk
00:47:08]} {[%emt 00:00:26]} Be5+ {[%clk 01:09:40]} {[%emt 00:00:16]} 30. g3
{[%clk 00:46:47]} {[%emt 00:00:51]} b4 {[%clk 01:09:26]} {[%emt 00:00:44]} 31.
Nf3 {[%clk 00:44:10]} {[%emt 00:03:06]} Qf1 {[%clk 01:09:30]} {[%emt 00:00:26]}
32. Rc8+ {[%clk 00:41:29]} {[%emt 00:03:12]} Rxc8 {[%clk 01:06:27]} {[%emt
00:03:33]} 33. Qxc8+ {[%clk 00:41:51]} {[%emt 00:00:08]} Nf8 {[%clk 01:06:51]}
{[%emt 00:00:06]} 34. Nxe5 {[%clk 00:41:36]} {[%emt 00:00:45]} dxe5 {[%clk
01:07:14]} {[%emt 00:00:06]} 35. Be4 {[%clk 00:40:15]} {[%emt 00:01:50]} Kg7
{[%clk 01:06:16]} {[%emt 00:01:29]} 36. Bh6+ {[%clk 00:40:03]} {[%emt
00:00:42]} Kxh6 {[%clk 01:06:28]} {[%emt 00:00:17]} 37. Qxf8+ {[%clk 00:40:31]}
{[%emt 00:00:02]} Kh5 {[%clk 01:05:17]} {[%emt 00:01:42]} 38. Bf3+ {[%clk
00:40:01]} {[%emt 00:01:00]} Kg5 {[%clk 01:02:36]} {[%emt 00:03:10]} 39. Qxe7+
{[%clk 00:38:51]} {[%emt 00:01:40]} Kf5 {[%clk 01:00:28]} {[%emt 00:02:38]} 40.
g4+ {[%clk 00:38:48]} {[%emt 00:00:34]} Kf4 {[%clk 01:00:00]} {[%emt 00:00:56]}
41. Qf6# {[%clk 00:39:12]} {[%emt 00:00:06]} 1-0

[Event "NJSK 2021 Jeugd C"]
[Site "Almelo, Netherlands"]
[Date "2021.08.01"]
[Round "1.12"]
[White "Lankheet, Hidde"]
[Black "Kumar, Prayan Sai"]
[Result "0-1"]
[TimeControl "90min + 30sec/move"]
[WhiteElo "1000"]
[BlackElo "1652"]

1. e4 {[%clk 01:30:58]} c6 {[%clk 01:30:51]} {[%emt 00:00:11]} 2. d4 {[%clk
01:31:16]} {[%emt 00:00:11]} d5 {[%clk 01:31:13]} {[%emt 00:00:09]} 3. e5
{[%clk 01:31:40]} {[%emt 00:00:06]} Bf5 {[%clk 01:31:37]} {[%emt 00:00:05]} 4.
h4 {[%clk 01:31:53]} {[%emt 00:00:17]} h5 {[%clk 01:31:59]} {[%emt 00:00:09]} 5.
Nf3 {[%clk 01:31:50]} {[%emt 00:00:33]} e6 {[%clk 01:32:08]} {[%emt 00:00:21]}
6. Bd3 {[%clk 01:30:46]} {[%emt 00:01:33]} Bxd3 {[%clk 01:32:30]} {[%emt
00:00:09]} 7. Qxd3 {[%clk 01:30:33]} {[%emt 00:00:43]} Nd7 {[%emt 00:01:37]} 8.
Nbd2 {[%clk 01:29:35]} {[%emt 00:01:14]} Ne7 {[%clk 01:31:39]} {[%emt
00:00:28]} 9. Nb3 {[%clk 01:29:06]} {[%emt 00:00:59]} a5 {[%clk 01:29:08]}
{[%emt 00:03:01]} 10. Bd2 {[%clk 01:27:47]} {[%emt 00:01:48]} a4 {[%clk
01:29:06]} {[%emt 00:00:34]} 11. Nc1 {[%clk 01:26:58]} {[%emt 00:01:18]} Qc7
{[%clk 01:27:29]} {[%emt 00:02:06]} 12. a3 {[%clk 01:25:26]} {[%emt 00:02:03]}
c5 {[%clk 01:26:32]} {[%emt 00:01:27]} 13. c3 {[%clk 01:25:08]} {[%emt
00:00:47]} Nc6 {[%clk 01:26:48]} {[%emt 00:00:14]} 14. Ne2 {[%clk 01:25:02]}
{[%emt 00:00:36]} Na5 {[%clk 01:23:33]} {[%emt 00:03:44]} 15. Qe3 {[%clk
01:18:37]} {[%emt 00:06:55]} Nc4 {[%clk 01:18:19]} {[%emt 00:05:45]} 16. Qf4
{[%clk 01:16:44]} {[%emt 00:03:31]} Nxb2 17. O-O {[%clk 01:15:49]} {[%emt
00:01:10]} Nc4 {[%clk 01:06:03]} {[%emt 00:12:21]} 18. Rfb1 {[%clk 01:12:23]}
{[%emt 00:03:57]} Na5 {[%clk 00:56:25]} {[%emt 00:10:09]} 19. Rb2 {[%clk
01:08:10]} {[%emt 00:04:43]} Nb3 {[%clk 00:55:31]} {[%emt 00:01:23]} 20. Rab1
{[%clk 01:07:19]} {[%emt 00:01:21]} c4 {[%clk 00:38:18]} {[%emt 00:17:43]} 21.
Nc1 {[%clk 01:06:03]} {[%emt 00:01:46]} Bxa3 {[%clk 00:37:54]} {[%emt
00:00:54]} 22. Ra2 {[%clk 01:04:47]} {[%emt 00:01:46]} Bxc1 {[%clk 00:37:54]}
{[%emt 00:00:31]} 23. Bxc1 {[%clk 01:04:56]} {[%emt 00:00:20]} Ra6 {[%clk
00:32:31]} {[%emt 00:05:53]} 24. Ne1 {[%clk 01:01:42]} {[%emt 00:03:44]} Rb6
{[%clk 00:30:42]} {[%emt 00:02:20]} 25. Rxa4 {[%clk 01:00:00]} {[%emt
00:02:12]} Nxd4 {[%clk 00:28:25]} {[%emt 00:02:46]} 26. Ra8+ {[%clk 00:53:32]}
{[%emt 00:06:59]} Nb8 {[%clk 00:28:45]} {[%emt 00:00:09]} 27. Rxb6 {[%clk
00:53:43]} {[%emt 00:00:19]} Ne2+ {[%clk 00:29:00]} {[%emt 00:00:15]} 28. Kf1
{[%clk 00:53:53]} {[%emt 00:00:20]} Nxf4 {[%clk 00:29:26]} {[%emt 00:00:04]} 29.
Bxf4 {[%clk 00:53:26]} {[%emt 00:00:57]} Ke7 {[%clk 00:26:49]} {[%emt
00:03:07]} 30. Be3 {[%clk 00:51:37]} {[%emt 00:02:19]} Re8 {[%clk 00:25:09]}
{[%emt 00:02:10]} 31. Bc5+ {[%clk 00:51:16]} {[%emt 00:00:51]} Qxc5 {[%clk
00:25:01]} {[%emt 00:00:37]} 32. Rxb7+ {[%clk 00:51:35]} {[%emt 00:00:12]} Nd7
{[%clk 00:25:14]} {[%emt 00:00:18]} 33. Raa7 {[%clk 00:50:21]} {[%emt
00:01:44]} Rd8 {[%clk 00:25:35]} {[%emt 00:00:08]} 34. Rc7 {[%clk 00:50:28]}
{[%emt 00:00:23]} Qb5 {[%clk 00:24:49]} {[%emt 00:01:16]} 35. Nc2 {[%clk
00:49:52]} {[%emt 00:01:06]} Qb1+ {[%clk 00:25:11]} {[%emt 00:00:08]} 36. Ne1
{[%clk 00:50:15]} {[%emt 00:00:07]} Qc1 {[%clk 00:25:26]} {[%emt 00:00:16]} 37.
Rcb7 {[%emt 00:02:11]} 0-1

[Event "NJSK 2021 Jeugd C"]
[Site "Almelo, Netherlands"]
[Date "2021.08.02"]
[Round "2.1"]
[White "Arnold, Rhys"]
[Black "Labruyere, Roger"]
[Result "0-1"]
[TimeControl "90min + 30sec/move"]
[WhiteElo "1748"]
[BlackElo "2003"]

1. e4 {[%clk 01:30:30]} c6 {[%clk 01:30:30]} 2. Nc3 {[%clk 01:30:30]} d5 {[%clk
01:30:30]} 3. Nf3 {[%clk 01:30:30]} Bg4 {[%clk 01:30:30]} 4. h3 {[%clk
01:30:30]} Bxf3 {[%clk 01:30:30]} 5. Qxf3 {[%clk 01:30:30]} e6 {[%clk
01:30:30]} 6. d4 {[%clk 01:30:30]} dxe4 {[%clk 01:30:30]} 7. Qxe4 {[%clk
01:30:30]} Nf6 {[%clk 01:30:30]} 8. Qe3 {[%clk 01:30:30]} Be7 {[%clk 01:30:30]}
9. Bd3 {[%clk 01:30:30]} Nbd7 {[%clk 01:30:30]} 10. O-O {[%clk 01:30:30]} O-O
{[%clk 01:30:30]} 11. Ne4 {[%clk 01:30:30]} Nxe4 {[%clk 01:30:30]} 12. Qxe4
{[%clk 01:30:30]} Nf6 {[%clk 01:30:30]} 13. Qe3 {[%clk 01:30:30]} Re8 {[%clk
01:30:30]} 14. a3 {[%clk 01:30:30]} Qd7 {[%clk 01:30:30]} 15. b4 {[%clk
01:30:30]} a5 {[%clk 01:30:30]} 16. c3 {[%clk 01:30:30]} axb4 {[%clk 01:30:30]}
17. cxb4 {[%clk 01:30:30]} Bxb4 {[%clk 01:30:30]} 18. Rb1 {[%clk 01:30:30]} Bf8
{[%clk 01:30:30]} 19. Ra1 {[%clk 01:17:42]} {[%emt 00:35:51]} Bb4 {[%clk
01:22:50]} {[%emt 00:01:21]} 20. Rb1 {[%clk 01:17:01]} {[%emt 00:01:27]} Bf8
{[%clk 01:22:55]} {[%emt 00:00:24]} 21. Bb2 {[%clk 01:10:22]} {[%emt 00:07:09]}
Nd5 {[%clk 01:16:04]} {[%emt 00:07:22]} 22. Qf3 {[%clk 01:04:19]} {[%emt
00:06:32]} g6 {[%clk 01:14:34]} {[%emt 00:02:01]} 23. h4 {[%clk 01:03:48]}
{[%emt 00:01:00]} Qc7 {[%clk 01:04:17]} {[%emt 00:10:46]} 24. Bc4 {[%clk
01:01:14]} {[%emt 00:03:06]} b5 {[%clk 01:01:16]} {[%emt 00:03:31]} 25. Bb3
{[%clk 00:59:54]} {[%emt 00:01:50]} Qd7 {[%clk 00:54:34]} {[%emt 00:07:10]} 26.
h5 {[%clk 00:57:43]} {[%emt 00:02:42]} Bxa3 {[%clk 00:43:51]} {[%emt 00:11:14]}
27. Bxa3 {[%clk 00:50:09]} {[%emt 00:08:04]} Rxa3 {[%clk 00:44:16]} {[%emt
00:00:05]} 28. Qe4 {[%clk 00:49:35]} {[%emt 00:01:02]} Nc3 {[%clk 00:44:05]}
{[%emt 00:00:42]} 29. Qe5 {[%clk 00:49:33]} {[%emt 00:00:32]} Nxb1 {[%clk
00:42:45]} {[%emt 00:01:51]} 30. h6 {[%clk 00:49:52]} {[%emt 00:00:11]} f6
{[%clk 00:43:10]} {[%emt 00:00:05]} 0-1